[Event "*** Titled Tuesday Blitz"]
[Site "Chess.com"]
[Date "2019.09.03"]
[Round "1"]
[White "NormWeinstein"]
[Black "DeviatkinAndrey"]
[Result "1/2-1/2"]
[WhiteElo "2379"]
[BlackElo "2707"]
[TimeControl "180+2"]
[EndTime "15:10:41 PDT"]
[Termination "Game drawn - insufficient material"]

1. e4 {[%clk 0:02:59.2]} 1... c6 {[%clk 0:03:01]} 2. d4 {[%clk 0:02:58.9]} 2...
d5 {[%clk 0:03:01.8]} 3. exd5 {[%clk 0:03:00.5]} 3... cxd5 {[%clk 0:03:02.8]} 4.
c4 {[%clk 0:03:01.4]} 4... Nf6 {[%clk 0:03:03.3]} 5. Nc3 {[%clk 0:03:02.9]} 5...
g6 {[%clk 0:03:03.7]} 6. cxd5 {[%clk 0:03:03.3]} 6... Nxd5 {[%clk 0:03:03.3]} 7.
Bc4 {[%clk 0:03:03.5]} 7... Nb6 {[%clk 0:03:02.4]} 8. Bb3 {[%clk 0:03:04.5]}
8... Bg7 {[%clk 0:03:03.8]} 9. Nf3 {[%clk 0:03:05.2]} 9... O-O {[%clk
0:03:02.9]} 10. O-O {[%clk 0:03:06.1]} 10... Bg4 {[%clk 0:02:58.5]} 11. Be3
{[%clk 0:03:06.6]} 11... Nc6 {[%clk 0:02:58.6]} 12. h3 {[%clk 0:03:06.2]} 12...
Bxf3 {[%clk 0:02:55.9]} 13. Qxf3 {[%clk 0:03:06.8]} 13... Nxd4 {[%clk 0:02:39]}
14. Qxb7 {[%clk 0:03:07.2]} 14... e5 {[%clk 0:01:38.5]} 15. Rad1 {[%clk
0:03:05.3]} 15... Qc8 {[%clk 0:01:34.8]} 16. Qxc8 {[%clk 0:02:40.5]} 16... Rfxc8
{[%clk 0:01:35.5]} 17. Bxd4 {[%clk 0:02:41.1]} 17... exd4 {[%clk 0:01:36.6]} 18.
Nb5 {[%clk 0:02:39.1]} 18... Rd8 {[%clk 0:01:37]} 19. Rd3 {[%clk 0:02:33.4]}
19... a6 {[%clk 0:01:37.6]} 20. Na3 {[%clk 0:02:18.5]} 20... Nd7 {[%clk
0:01:33.6]} 21. Rd2 {[%clk 0:01:40.5]} 21... Nc5 {[%clk 0:01:23.2]} 22. Bc4
{[%clk 0:01:38.6]} 22... Rd6 {[%clk 0:01:18]} 23. Rfd1 {[%clk 0:01:35.8]} 23...
Rad8 {[%clk 0:01:17.8]} 24. Bd3 {[%clk 0:01:26.6]} 24... h5 {[%clk 0:00:42.9]}
25. Kf1 {[%clk 0:01:25.8]} 25... h4 {[%clk 0:00:42.9]} 26. Nc4 {[%clk
0:01:25.3]} 26... Rc6 {[%clk 0:00:43.3]} 27. b3 {[%clk 0:01:23.8]} 27... Re6
{[%clk 0:00:29.2]} 28. Re2 {[%clk 0:01:23.8]} 28... Rde8 {[%clk 0:00:25.9]} 29.
Rxe6 {[%clk 0:01:21]} 29... Rxe6 {[%clk 0:00:27]} 30. Nb2 {[%clk 0:01:17.3]}
30... Kf8 {[%clk 0:00:21.1]} 31. Rc1 {[%clk 0:01:14.2]} 31... Re5 {[%clk
0:00:15.7]} 32. Rc4 {[%clk 0:01:06.7]} 32... Rd5 {[%clk 0:00:15.8]} 33. Rb4
{[%clk 0:01:06.3]} 33... Nxd3 {[%clk 0:00:09.9]} 34. Nxd3 {[%clk 0:01:05.5]}
34... a5 {[%clk 0:00:09]} 35. Rb7 {[%clk 0:01:02.1]} 35... Rd8 {[%clk
0:00:09.4]} 36. Rc7 {[%clk 0:00:52.9]} 36... a4 {[%clk 0:00:04]} 37. b4 {[%clk
0:00:50.1]} 37... Rb8 {[%clk 0:00:04.3]} 38. a3 {[%clk 0:00:50.8]} 38... Bf6
{[%clk 0:00:05]} 39. Ke2 {[%clk 0:00:51]} 39... Kg7 {[%clk 0:00:05.8]} 40. Nc5
{[%clk 0:00:48.8]} 40... Re8+ {[%clk 0:00:06.8]} 41. Kd2 {[%clk 0:00:47.3]}
41... Bg5+ {[%clk 0:00:07.4]} 42. Kd3 {[%clk 0:00:47.9]} 42... Bc1 {[%clk
0:00:08]} 43. Nxa4 {[%clk 0:00:42.9]} 43... Bxa3 {[%clk 0:00:09.1]} 44. b5
{[%clk 0:00:44.3]} 44... Rb8 {[%clk 0:00:08.4]} 45. b6 {[%clk 0:00:44.2]} 45...
Bd6 {[%clk 0:00:07.4]} 46. Rd7 {[%clk 0:00:40.3]} 46... Bh2 {[%clk 0:00:05.3]}
47. b7 {[%clk 0:00:41]} 47... Kf6 {[%clk 0:00:02.9]} 48. Nc5 {[%clk 0:00:41.4]}
48... Re8 {[%clk 0:00:03.6]} 49. Ne4+ {[%clk 0:00:32.9]} 49... Kg7 {[%clk
0:00:03.7]} 50. Nd6 {[%clk 0:00:30.2]} 50... Rb8 {[%clk 0:00:02.7]} 51. Nxf7
{[%clk 0:00:22.3]} 51... Kf6 {[%clk 0:00:04]} 52. Nd8 {[%clk 0:00:23.6]} 52...
g5 {[%clk 0:00:02.8]} 53. Nc6 {[%clk 0:00:24.2]} 53... Re8 {[%clk 0:00:03.7]}
54. Rd8 {[%clk 0:00:18.8]} 54... Re1 {[%clk 0:00:03.7]} 55. b8=Q {[%clk
0:00:14.8]} 55... Bxb8 {[%clk 0:00:04.5]} 56. Rxb8 {[%clk 0:00:15.4]} 56... Rg1
{[%clk 0:00:05.8]} 57. Nxd4 {[%clk 0:00:14.8]} 57... Rxg2 {[%clk 0:00:07]} 58.
Rb5 {[%clk 0:00:14.7]} 58... Rh2 {[%clk 0:00:07.5]} 59. Rf5+ {[%clk 0:00:14.1]}
59... Kg6 {[%clk 0:00:08.6]} 60. Rf3 {[%clk 0:00:16]} 60... g4 {[%clk
0:00:09.8]} 61. hxg4 {[%clk 0:00:15.9]} 61... Kg5 {[%clk 0:00:11.2]} 62. Ke4
{[%clk 0:00:14.1]} 62... Kxg4 {[%clk 0:00:10]} 63. Rf4+ {[%clk 0:00:14.1]} 63...
Kh5 {[%clk 0:00:11.1]} 64. Nf5 {[%clk 0:00:13]} 64... h3 {[%clk 0:00:08.1]} 65.
Kf3 {[%clk 0:00:12.6]} 65... Kg5 {[%clk 0:00:08.4]} 66. Ne3 {[%clk 0:00:11.7]}
66... Rxf2+ {[%clk 0:00:09.2]} 67. Kxf2 {[%clk 0:00:10.5]} 67... Kxf4 {[%clk
0:00:11.1]} 68. Nf1 {[%clk 0:00:10.2]} 68... h2 {[%clk 0:00:12.1]} 69. Nxh2
{[%clk 0:00:10.4]} 1/2-1/2

[Event "*** Titled Tuesday Blitz"]
[Site "Chess.com"]
[Date "2019.09.03"]
[Round "1"]
[White "SirMittensofMittensville"]
[Black "Shant_Sargsyan"]
[Result "1-0"]
[WhiteElo "2523"]
[BlackElo "2982"]
[TimeControl "180+2"]
[EndTime "15:10:42 PDT"]
[Termination "SirMittensofMittensville won by resignation"]

1. e4 {[%clk 0:03:00.7]} 1... e5 {[%clk 0:02:59.1]} 2. Nf3 {[%clk 0:03:00.6]}
2... Nc6 {[%clk 0:03:00.5]} 3. Bc4 {[%clk 0:03:02.2]} 3... Nf6 {[%clk
0:03:01.5]} 4. d3 {[%clk 0:03:03.8]} 4... h6 {[%clk 0:03:02.5]} 5. O-O {[%clk
0:03:05.7]} 5... d6 {[%clk 0:03:03.9]} 6. Re1 {[%clk 0:03:07.2]} 6... g5 {[%clk
0:03:03.9]} 7. a4 {[%clk 0:03:08.5]} 7... Bg7 {[%clk 0:03:03.9]} 8. a5 {[%clk
0:03:09.9]} 8... a6 {[%clk 0:03:03.8]} 9. Nc3 {[%clk 0:03:11.4]} 9... O-O {[%clk
0:03:02.4]} 10. Nd2 {[%clk 0:03:02.8]} 10... Bg4 {[%clk 0:03:02.3]} 11. f3
{[%clk 0:03:01.2]} 11... Be6 {[%clk 0:03:03.4]} 12. Nf1 {[%clk 0:03:00.7]} 12...
d5 {[%clk 0:03:04]} 13. Bb3 {[%clk 0:02:51.4]} 13... Nd4 {[%clk 0:02:56]} 14.
Ba2 {[%clk 0:02:52.1]} 14... Qd7 {[%clk 0:02:47]} 15. Ng3 {[%clk 0:02:46.2]}
15... Rad8 {[%clk 0:02:45]} 16. Be3 {[%clk 0:02:39.6]} 16... c6 {[%clk
0:02:24.3]} 17. Na4 {[%clk 0:02:22.5]} 17... dxe4 {[%clk 0:02:17.3]} 18. Nc5
{[%clk 0:02:06.9]} 18... Qe7 {[%clk 0:02:15.6]} 19. Nxe6 {[%clk 0:02:07.8]}
19... Nxe6 {[%clk 0:02:13.2]} 20. fxe4 {[%clk 0:02:04.4]} 20... Nf4 {[%clk
0:02:04.8]} 21. Nf5 {[%clk 0:02:02]} 21... Qd7 {[%clk 0:02:06]} 22. Qf3 {[%clk
0:01:57.9]} 22... Kh7 {[%clk 0:01:51.3]} 23. g3 {[%clk 0:01:51.7]} 23... Ne6
{[%clk 0:01:50.1]} 24. Rf1 {[%clk 0:01:47.1]} 24... Bh8 {[%clk 0:01:51]} 25. Kh1
{[%clk 0:01:40.5]} 25... Rg8 {[%clk 0:01:51.1]} 26. Bc4 {[%clk 0:01:35.4]} 26...
Rg6 {[%clk 0:01:49.2]} 27. Qg2 {[%clk 0:01:29.2]} 27... g4 {[%clk 0:01:24.3]}
28. Rf2 {[%clk 0:01:26]} 28... Ng5 {[%clk 0:01:18]} 29. Bxg5 {[%clk 0:01:20.3]}
29... Rxg5 {[%clk 0:01:19.5]} 30. Raf1 {[%clk 0:01:19.6]} 30... Rf8 {[%clk
0:01:20.6]} 31. b4 {[%clk 0:01:03.5]} 31... Qd8 {[%clk 0:01:18.4]} 32. Nh4
{[%clk 0:01:00.6]} 32... h5 {[%clk 0:01:11.2]} 33. Rf5 {[%clk 0:00:58.2]} 33...
Rxf5 {[%clk 0:01:12.5]} 34. Rxf5 {[%clk 0:00:59.8]} 34... Qd4 {[%clk 0:01:13.7]}
35. Qf1 {[%clk 0:00:57.9]} 35... Qd6 {[%clk 0:01:02.4]} 36. Rg5 {[%clk 0:00:54]}
36... Qd7 {[%clk 0:01:01.1]} 37. Rf5 {[%clk 0:00:47.4]} 37... Qd6 {[%clk
0:01:01.9]} 38. c3 {[%clk 0:00:47.9]} 38... Bg7 {[%clk 0:00:48.5]} 39. Ng2
{[%clk 0:00:41.2]} 39... Qe7 {[%clk 0:00:30.1]} 40. Nh4 {[%clk 0:00:40.3]} 40...
Rd8 {[%clk 0:00:28.6]} 41. Qf2 {[%clk 0:00:23.8]} 41... Kh8 {[%clk 0:00:21.8]}
42. Rg5 {[%clk 0:00:22.1]} 42... Bh6 {[%clk 0:00:07.9]} 43. Nf5 {[%clk
0:00:21.3]} 43... Qf8 {[%clk 0:00:07.7]} 44. Nxh6 {[%clk 0:00:20.8]} 44... Qxh6
{[%clk 0:00:09.6]} 45. Rf5 {[%clk 0:00:22.4]} 45... Kg7 {[%clk 0:00:10.9]} 46.
Kg2 {[%clk 0:00:21.3]} 46... h4 {[%clk 0:00:11.9]} 47. gxh4 {[%clk 0:00:20.9]}
47... Nh5 {[%clk 0:00:08.8]} 48. Rxf7+ {[%clk 0:00:19.7]} 48... Kh8 {[%clk
0:00:10.2]} 49. Qf5 {[%clk 0:00:18.8]} 49... Nf4+ {[%clk 0:00:10.9]} 50. Kg3
{[%clk 0:00:20.1]} 50... Nh5+ {[%clk 0:00:09.6]} 51. Kxg4 {[%clk 0:00:15]} 51...
Rg8+ {[%clk 0:00:08.5]} 52. Kf3 {[%clk 0:00:16.5]} 52... Ng7 {[%clk 0:00:04.1]}
53. Qg5 {[%clk 0:00:14.4]} 53... Qh7 {[%clk 0:00:04.9]} 54. Rf6 {[%clk
0:00:13.3]} 54... Ne6 {[%clk 0:00:04.5]} 55. Bxe6 {[%clk 0:00:09.8]} 55... Rxg5
{[%clk 0:00:05.7]} 56. Rf8+ {[%clk 0:00:09.4]} 56... Kg7 {[%clk 0:00:05.4]} 57.
Rf7+ {[%clk 0:00:10.7]} 57... Kg6 {[%clk 0:00:05.5]} 58. Rxh7 {[%clk 0:00:12.6]}
58... Rg1 {[%clk 0:00:07.1]} 59. Rxb7 {[%clk 0:00:13.5]} 59... Rf1+ {[%clk
0:00:08.2]} 60. Ke3 {[%clk 0:00:14.7]} 60... Rc1 {[%clk 0:00:10.1]} 61. Kd2
{[%clk 0:00:15.8]} 61... Rh1 {[%clk 0:00:11.3]} 62. Bc4 {[%clk 0:00:17.4]} 62...
Rxh2+ {[%clk 0:00:12.6]} 63. Kc1 {[%clk 0:00:19]} 63... Rh3 {[%clk 0:00:14.5]}
64. Kb2 {[%clk 0:00:20]} 64... Rxh4 {[%clk 0:00:15.9]} 65. Kb3 {[%clk
0:00:21.5]} 65... Kf6 {[%clk 0:00:17.8]} 66. Rb6 {[%clk 0:00:23.1]} 66... Kg5
{[%clk 0:00:19.7]} 67. Rxc6 {[%clk 0:00:25]} 67... Kf4 {[%clk 0:00:21.6]} 68.
Rxa6 {[%clk 0:00:26.4]} 1-0

[Event "*** Titled Tuesday Blitz"]
[Site "Chess.com"]
[Date "2019.09.03"]
[Round "1"]
[White "sofaceindisguise"]
[Black "HarryCun"]
[Result "0-1"]
[WhiteElo "2537"]
[BlackElo "2098"]
[TimeControl "180+2"]
[EndTime "15:10:53 PDT"]
[Termination "HarryCun won by resignation"]

1. e4 {[%clk 0:02:08.4]} 1... c6 {[%clk 0:03:00.4]} 2. Nc3 {[%clk 0:02:07.9]}
2... d5 {[%clk 0:03:01.4]} 3. Nf3 {[%clk 0:02:09]} 3... Bg4 {[%clk 0:03:01.6]}
4. h3 {[%clk 0:02:05.7]} 4... Bxf3 {[%clk 0:03:01.3]} 5. Qxf3 {[%clk 0:01:59.4]}
5... Nf6 {[%clk 0:02:59]} 6. e5 {[%clk 0:01:59.2]} 6... Nfd7 {[%clk 0:02:54.1]}
7. d4 {[%clk 0:01:59.6]} 7... e6 {[%clk 0:02:50.8]} 8. Qg3 {[%clk 0:01:59.1]}
8... c5 {[%clk 0:02:47.3]} 9. dxc5 {[%clk 0:01:58.9]} 9... Nxc5 {[%clk
0:02:46.8]} 10. Be2 {[%clk 0:01:58.4]} 10... Nc6 {[%clk 0:02:45.6]} 11. O-O
{[%clk 0:01:59.1]} 11... Qc7 {[%clk 0:02:41.4]} 12. f4 {[%clk 0:01:58.9]} 12...
Nd4 {[%clk 0:02:37.6]} 13. Bd1 {[%clk 0:01:57.8]} 13... Nf5 {[%clk 0:02:37.1]}
14. Qf2 {[%clk 0:01:58.7]} 14... Nd3 {[%clk 0:02:27.8]} 15. Nb5 {[%clk
0:01:51.6]} 15... Qc6 {[%clk 0:02:20.9]} 16. cxd3 {[%clk 0:01:50.9]} 16... Qxb5
{[%clk 0:02:19.6]} 17. d4 {[%clk 0:01:50]} 17... Be7 {[%clk 0:02:17.6]} 18. g4
{[%clk 0:01:49.7]} 18... Nxd4 {[%clk 0:02:17.4]} 19. Kg2 {[%clk 0:01:35.9]}
19... Nc6 {[%clk 0:02:14.9]} 20. f5 {[%clk 0:01:36.1]} 20... d4 {[%clk
0:02:06.9]} 21. fxe6 {[%clk 0:01:35.3]} 21... Qd5+ {[%clk 0:02:06.5]} 22. Kg3
{[%clk 0:01:30.9]} 22... Qxe5+ {[%clk 0:02:05.8]} 23. Bf4 {[%clk 0:01:31.5]}
23... Qxe6 {[%clk 0:02:05]} 24. Bb3 {[%clk 0:01:32.9]} 24... Qf6 {[%clk
0:02:00.9]} 25. g5 {[%clk 0:01:19.1]} 25... Qf5 {[%clk 0:01:52.4]} 26. Qf3
{[%clk 0:01:05.7]} 26... O-O {[%clk 0:01:41]} 27. h4 {[%clk 0:01:05.7]} 27... d3
{[%clk 0:01:36.8]} 28. Rae1 {[%clk 0:01:04.1]} 28... Rae8 {[%clk 0:01:33.5]} 29.
Bc4 {[%clk 0:01:01.6]} 29... d2 {[%clk 0:01:23.7]} 30. Bxd2 {[%clk 0:01:01.1]}
30... Qxf3+ {[%clk 0:01:24.4]} 31. Rxf3 {[%clk 0:01:03]} 31... Bd6+ {[%clk
0:01:25.1]} 32. Kg2 {[%clk 0:01:04.5]} 32... Rxe1 {[%clk 0:01:24.5]} 33. Bxe1
{[%clk 0:01:06.4]} 33... Ne5 {[%clk 0:01:25]} 34. Rf4 {[%clk 0:01:06.6]} 34...
Nd3 {[%clk 0:01:20.3]} 35. Re4 {[%clk 0:01:03.5]} 35... Nxe1+ {[%clk 0:01:10.6]}
36. Rxe1 {[%clk 0:01:03.4]} 36... Rc8 {[%clk 0:01:11.4]} 37. b3 {[%clk
0:01:03.7]} 37... g6 {[%clk 0:01:04.6]} 38. Rd1 {[%clk 0:01:03.7]} 38... Rd8
{[%clk 0:00:56.1]} 39. Rf1 {[%clk 0:01:02.2]} 39... Rd7 {[%clk 0:00:56.1]} 40.
Kf3 {[%clk 0:01:00.7]} 40... Kg7 {[%clk 0:00:52]} 41. Ke4 {[%clk 0:01:01]} 41...
Bc5 {[%clk 0:00:49.4]} 42. a4 {[%clk 0:00:55]} 42... b6 {[%clk 0:00:48.5]} 43.
Bd5 {[%clk 0:00:54.3]} 43... a5 {[%clk 0:00:48.3]} 44. Rf4 {[%clk 0:00:52.6]}
44... Re7+ {[%clk 0:00:48.6]} 45. Kd3 {[%clk 0:00:52.9]} 45... Re3+ {[%clk
0:00:49.6]} 46. Kc4 {[%clk 0:00:53.8]} 46... Re7 {[%clk 0:00:48.8]} 47. Kb5
{[%clk 0:00:53.7]} 47... h6 {[%clk 0:00:47.3]} 48. gxh6+ {[%clk 0:00:52.2]}
48... Kxh6 {[%clk 0:00:48.5]} 49. Bxf7 {[%clk 0:00:53]} 49... Be3 {[%clk
0:00:40.6]} 50. Rf3 {[%clk 0:00:50.9]} 50... Kh5 {[%clk 0:00:34.2]} 51. Rf6
{[%clk 0:00:46.8]} 51... Kxh4 {[%clk 0:00:29.7]} 52. Bxg6 {[%clk 0:00:46.6]}
52... Kg5 {[%clk 0:00:30]} 53. Rc6 {[%clk 0:00:47.2]} 53... Re5+ {[%clk
0:00:30.4]} 54. Ka6 {[%clk 0:00:47.7]} 54... Kf4 {[%clk 0:00:28]} 55. Bf7 {[%clk
0:00:45.2]} 55... Ke4 {[%clk 0:00:28.2]} 56. Rc4+ {[%clk 0:00:38.9]} 56... Kd3
{[%clk 0:00:28.4]} 57. Bg6+ {[%clk 0:00:39]} 57... Ke2 {[%clk 0:00:28.7]} 58.
Rc2+ {[%clk 0:00:39.9]} 58... Kf3 {[%clk 0:00:29.9]} 59. Bf7 {[%clk 0:00:40.1]}
59... Ke4 {[%clk 0:00:30.5]} 60. Rc6 {[%clk 0:00:40.6]} 60... Kd4 {[%clk
0:00:31]} 61. Rc4+ {[%clk 0:00:39.1]} 61... Kd3 {[%clk 0:00:31.5]} 62. Bg6+
{[%clk 0:00:40.2]} 62... Ke2 {[%clk 0:00:32.1]} 63. Be4 {[%clk 0:00:41.1]} 63...
Bc5 {[%clk 0:00:32.7]} 64. Kb7 {[%clk 0:00:39.6]} 64... Ke3 {[%clk 0:00:33.7]}
65. Bh7 {[%clk 0:00:38.8]} 65... Rh5 {[%clk 0:00:34]} 66. Bg8 {[%clk 0:00:36.4]}
66... Rg5 {[%clk 0:00:34.3]} 67. Be6 {[%clk 0:00:34.4]} 67... Re5 {[%clk
0:00:35.1]} 68. Bd7 {[%clk 0:00:35]} 68... Re7 {[%clk 0:00:35.9]} 69. Kc6 {[%clk
0:00:35.8]} 69... Kd3 {[%clk 0:00:36.9]} 70. Bf5+ {[%clk 0:00:36.5]} 70... Kd2
{[%clk 0:00:35.2]} 71. Rc2+ {[%clk 0:00:36.4]} 71... Ke3 {[%clk 0:00:35.6]} 72.
Bh7 {[%clk 0:00:35]} 72... Rxh7 {[%clk 0:00:35.8]} 73. Rxc5 {[%clk 0:00:25.3]}
73... bxc5 {[%clk 0:00:35.7]} 74. Kxc5 {[%clk 0:00:27.2]} 74... Rb7 {[%clk
0:00:36.7]} 75. Kc4 {[%clk 0:00:26.3]} 75... Rb4+ {[%clk 0:00:37.4]} 76. Kc3
{[%clk 0:00:28.2]} 76... Ke4 {[%clk 0:00:38.6]} 0-1

[Event "*** Titled Tuesday Blitz"]
[Site "Chess.com"]
[Date "2019.09.03"]
[Round "1"]
[White "Morscas"]
[Black "Snegokhod"]
[Result "1-0"]
[WhiteElo "2231"]
[BlackElo "2571"]
[TimeControl "180+2"]
[EndTime "15:11:00 PDT"]
[Termination "Morscas won by checkmate"]

1. e4 {[%clk 0:03:01.4]} 1... c5 {[%clk 0:02:59.5]} 2. Nf3 {[%clk 0:03:01.5]}
2... e6 {[%clk 0:03:00.4]} 3. b3 {[%clk 0:03:01.8]} 3... Nf6 {[%clk 0:03:00.3]}
4. e5 {[%clk 0:03:01.8]} 4... Nd5 {[%clk 0:03:01.3]} 5. Bd3 {[%clk 0:03:02.8]}
5... Nc6 {[%clk 0:03:00.6]} 6. O-O {[%clk 0:03:00.9]} 6... d6 {[%clk 0:02:59.2]}
7. Bb2 {[%clk 0:02:55.8]} 7... b6 {[%clk 0:03:00.2]} 8. Be4 {[%clk 0:02:55.4]}
8... dxe5 {[%clk 0:02:55.2]} 9. c4 {[%clk 0:02:52]} 9... Nde7 {[%clk 0:02:52.5]}
10. Nxe5 {[%clk 0:02:51.3]} 10... Bb7 {[%clk 0:02:52.5]} 11. Qh5 {[%clk
0:02:39.2]} 11... Nxe5 {[%clk 0:02:35.6]} 12. Bxb7 {[%clk 0:02:36.8]} 12... Rb8
{[%clk 0:02:34.6]} 13. Be4 {[%clk 0:02:30.4]} 13... Nd7 {[%clk 0:02:23.4]} 14.
Nc3 {[%clk 0:02:29.2]} 14... Nf6 {[%clk 0:02:23.3]} 15. Qe2 {[%clk 0:02:29.8]}
15... Nxe4 {[%clk 0:02:17.1]} 16. Nxe4 {[%clk 0:02:29.3]} 16... Nf5 {[%clk
0:02:18.1]} 17. Rad1 {[%clk 0:02:07]} 17... Be7 {[%clk 0:02:17.4]} 18. Qg4
{[%clk 0:01:54.7]} 18... O-O {[%clk 0:02:07.5]} 19. Ng3 {[%clk 0:01:54.1]} 19...
Bf6 {[%clk 0:02:04.4]} 20. Bxf6 {[%clk 0:01:47.2]} 20... Qxf6 {[%clk 0:02:05]}
21. Nxf5 {[%clk 0:01:25.4]} 21... exf5 {[%clk 0:02:05.6]} 22. Qf4 {[%clk
0:01:25.1]} 22... Rfd8 {[%clk 0:02:04.7]} 23. Qc7 {[%clk 0:01:24.6]} 23... Qd6
{[%clk 0:01:56.1]} 24. Qxd6 {[%clk 0:01:17.9]} 24... Rxd6 {[%clk 0:01:56]} 25.
Rfe1 {[%clk 0:01:19.8]} 25... Kf8 {[%clk 0:01:56.5]} 26. Re5 {[%clk 0:01:20.1]}
26... g6 {[%clk 0:01:57.5]} 27. Kf1 {[%clk 0:01:21.1]} 27... Rbd8 {[%clk
0:01:56.4]} 28. Ke2 {[%clk 0:01:21.7]} 28... Re6 {[%clk 0:01:53.4]} 29. Rxe6
{[%clk 0:01:21.5]} 29... fxe6 {[%clk 0:01:55.3]} 30. Ke3 {[%clk 0:01:18.7]}
30... e5 {[%clk 0:01:41.1]} 31. f4 {[%clk 0:01:18.8]} 31... Ke7 {[%clk
0:01:17.7]} 32. fxe5 {[%clk 0:01:17.5]} 32... Rd4 {[%clk 0:01:16.9]} 33. Rf1
{[%clk 0:01:11.3]} 33... Ke6 {[%clk 0:01:14.9]} 34. Rf4 {[%clk 0:01:11.7]} 34...
Rd7 {[%clk 0:00:46.5]} 35. d4 {[%clk 0:01:11.7]} 35... g5 {[%clk 0:00:47.1]} 36.
d5+ {[%clk 0:01:09.4]} 36... Kxe5 {[%clk 0:00:48.4]} 37. Rf1 {[%clk 0:01:10.5]}
37... b5 {[%clk 0:00:39.9]} 38. Kd3 {[%clk 0:01:10.2]} 38... bxc4+ {[%clk
0:00:37.2]} 39. bxc4 {[%clk 0:01:12.1]} 39... f4 {[%clk 0:00:23]} 40. g3 {[%clk
0:01:08.6]} 40... Rf7 {[%clk 0:00:19.6]} 41. gxf4+ {[%clk 0:01:09.2]} 41... gxf4
{[%clk 0:00:20.8]} 42. Re1+ {[%clk 0:01:10.3]} 42... Kf5 {[%clk 0:00:20.7]} 43.
Re6 {[%clk 0:01:08.6]} 43... Kg4 {[%clk 0:00:21.9]} 44. Ke2 {[%clk 0:01:08.4]}
44... Rb7 {[%clk 0:00:19.6]} 45. d6 {[%clk 0:01:09.6]} 45... Rb2+ {[%clk
0:00:17.5]} 46. Ke1 {[%clk 0:01:10.9]} 46... Rb7 {[%clk 0:00:15.2]} 47. Re7
{[%clk 0:01:10.7]} 47... Rb8 {[%clk 0:00:16.6]} 48. d7 {[%clk 0:01:11.2]} 48...
Rd8 {[%clk 0:00:17.8]} 49. Kf2 {[%clk 0:01:12.5]} 49... h5 {[%clk 0:00:18.1]}
50. Rf7 {[%clk 0:01:10.6]} 50... a5 {[%clk 0:00:18.1]} 51. a4 {[%clk 0:01:11.2]}
51... h4 {[%clk 0:00:17.6]} 52. Rh7 {[%clk 0:01:08.1]} 52... Rb8 {[%clk
0:00:17.7]} 53. Rg7+ {[%clk 0:01:07.9]} 53... Kf5 {[%clk 0:00:18.8]} 54. Re7
{[%clk 0:01:08.5]} 54... Rd8 {[%clk 0:00:18.4]} 55. Kf3 {[%clk 0:01:10]} 55...
h3 {[%clk 0:00:19.2]} 56. Rh7 {[%clk 0:01:11]} 56... Kg5 {[%clk 0:00:18]} 57.
Rg7+ {[%clk 0:01:11.5]} 57... Kf5 {[%clk 0:00:19.2]} 58. Rf7+ {[%clk 0:01:12.3]}
58... Ke5 {[%clk 0:00:19.8]} 59. Rh7 {[%clk 0:01:11.6]} 59... Kd4 {[%clk
0:00:18]} 60. Kxf4 {[%clk 0:01:12.1]} 60... Kxc4 {[%clk 0:00:19.2]} 61. Ke5
{[%clk 0:01:13.5]} 61... Kb3 {[%clk 0:00:20.1]} 62. Kd6 {[%clk 0:01:14.6]} 62...
c4 {[%clk 0:00:21.4]} 63. Rxh3+ {[%clk 0:01:15.1]} 63... Kxa4 {[%clk 0:00:21.9]}
64. Kc7 {[%clk 0:00:52.1]} 64... Rg8 {[%clk 0:00:22.3]} 65. d8=Q {[%clk
0:00:53.1]} 65... Rxd8 {[%clk 0:00:23.3]} 66. Kxd8 {[%clk 0:00:55]} 66... Kb4
{[%clk 0:00:24.2]} 67. Rh7 {[%clk 0:00:55.4]} 67... c3 {[%clk 0:00:19.6]} 68.
Rc7 {[%clk 0:00:55.3]} 68... a4 {[%clk 0:00:20.2]} 69. h4 {[%clk 0:00:56.3]}
69... a3 {[%clk 0:00:21.6]} 70. h5 {[%clk 0:00:54.6]} 70... a2 {[%clk 0:00:22]}
71. Rb7+ {[%clk 0:00:49.4]} 71... Ka3 {[%clk 0:00:16.2]} 72. h6 {[%clk
0:00:48.1]} 72... c2 {[%clk 0:00:17.5]} 73. h7 {[%clk 0:00:47.1]} 73... c1=Q
{[%clk 0:00:16.1]} 74. h8=Q {[%clk 0:00:48]} 74... Qg5+ {[%clk 0:00:13.3]} 75.
Kc8 {[%clk 0:00:46.7]} 75... Qc5+ {[%clk 0:00:12.6]} 76. Kb8 {[%clk 0:00:45.5]}
76... Qd6+ {[%clk 0:00:12.8]} 77. Ka8 {[%clk 0:00:46.7]} 77... Qd5 {[%clk
0:00:09.3]} 78. Qc3+ {[%clk 0:00:47]} 78... Ka4 {[%clk 0:00:10.3]} 79. Qb4#
{[%clk 0:00:48.5]} 1-0